bitfinex/quotes_BTCUSD_20250403
["timestamp","ask_amount","ask_price","bid_price","bid_amount"]
[1743654901789,0.24073126,83509.0,83503.0,0.26816873]
[1743654901983,0.00123626,83509.0,83504.0,0.011975]
[1743654902290,0.00123626,83509.0,83507.0,0.251475]
[1743654902698,0.011974,83513.0,83507.0,0.251475]
[1743654902858,0.01670857,83508.0,83507.0,0.251475]
[1743654903061,0.251464,83511.0,83505.0,0.239506]
[1743654903324,0.01548054,83508.0,83505.0,0.239506]
[1743654903550,0.3682196,83511.0,83506.0,0.00599948]
[1743654903681,0.01548015,83507.0,83506.0,0.00599948]
[1743654903902,0.1287306,83507.0,83506.0,0.00599948]
[1743654904102,0.13246484,83507.0,83506.0,0.00599948]
[1743654904313,0.13246484,83507.0,83506.0,0.01797448]
[1743654904944,0.1167556,83507.0,83506.0,0.01797448]
[1743654905381,0.13365357,83507.0,83506.0,0.01797448]
[1743654906289,0.01689797,83507.0,83506.0,0.01797448]
[1743654906496,0.01989181,83507.0,83506.0,0.00599948]
[1743654906667,0.00299395,83507.0,83506.0,0.00599948]
[1743654906881,0.01690046,83507.0,83506.0,0.00599948]
[1743654908747,0.01690046,83507.0,83506.0,0.01797429]
[1743654909859,0.01690046,83507.0,83506.0,0.02545854]
[1743654911074,0.01690046,83507.0,83506.0,0.02920067]
[1743654911722,0.01690046,83507.0,83506.0,0.04117567]
[1743654912133,0.0458,83513.0,83512.0,0.239486]
[1743654912466,0.004,83519.0,83515.0,0.011973]
[1743654912767,0.1167556,83518.0,83512.0,0.011974]
[1743654912986,0.38511518,83518.0,83512.0,0.011974]
[1743654913149,0.011973,83517.0,83512.0,0.011974]
[1743654913473,0.251449,83516.0,83511.0,0.239487]
[1743654913615,0.251449,83516.0,83513.0,0.00974161]
[1743654914059,0.251449,83516.0,83513.0,0.02920067]
[1743654914515,0.011973,83515.0,83513.0,0.02920067]
[1743654914916,0.011973,83515.0,83514.0,0.00748425]
[1743654915124,0.011973,83515.0,83514.0,0.01122638]
[1743654915321,0.01691658,83518.0,83515.0,0.239477]
[1743654915587,0.00291658,83519.0,83518.0,0.011973]
[1743654916615,0.00385919,83519.0,83518.0,0.011973]
[1743654916916,0.00385919,83519.0,83518.0,0.01945752]
[1743654917119,0.01583219,83519.0,83518.0,0.02918628]
[1743654918301,0.00385919,83519.0,83518.0,0.02918628]
[1743654918988,0.00385919,83519.0,83518.0,0.01721301]
[1743654920604,0.00385919,83519.0,83518.0,0.02918638]
[1743654920802,0.00385919,83519.0,83518.0,0.04115938]
[1743654921352,0.00291658,83519.0,83518.0,0.04115938]
[1743654921705,0.00291658,83519.0,83518.0,0.03517275]
[1743654923140,0.00291658,83519.0,83518.0,0.02319975]
[1743654923584,0.0170396,83519.0,83518.0,0.02319975]
[1743654923786,0.00387497,83519.0,83518.0,0.02319975]
[1743654925647,0.00387497,83519.0,83518.0,0.01122638]
[1743654926869,0.0170396,83519.0,83518.0,0.01122638]
[1743654927072,0.00387497,83519.0,83518.0,0.01122638]
[1743654927296,0.0170396,83519.0,83518.0,0.01122638]
[1743654927500,0.00387497,83519.0,83518.0,0.01122638]
[1743654927982,0.0170396,83519.0,83518.0,0.01122638]
[1743654929414,0.0172077,83519.0,83518.0,0.01122638]
[1743654931531,0.02850331,83519.0,83518.0,0.01122638]
[1743654931686,0.00404307,83519.0,83518.0,0.01122638]
[1743654931886,0.04047631,83519.0,83518.0,0.01122638]
[1743654932285,0.15723191,83519.0,83518.0,0.01122638]
[1743654933356,0.15723191,83519.0,83518.0,0.00748425]
[1743654934901,0.15723191,83519.0,83518.0,0.01122638]
[1743654937871,0.13523191,83519.0,83518.0,0.01122638]
[1743654938049,0.15099586,83519.0,83518.0,0.01122638]
[1743654938446,0.15398945,83519.0,83518.0,0.01122638]
[1743654939055,0.19978945,83519.0,83518.0,0.01122638]
[1743654943419,0.19978945,83519.0,83518.0,0.01156258]
[1743654943566,0.19995755,83519.0,83518.0,0.01156258]
[1743654943770,0.19995755,83519.0,83518.0,0.00407833]
[1743654943973,0.33423755,83519.0,83518.0,0.0003362]
[1743654944212,0.33124396,83519.0,83518.0,0.0003362]
[1743654945488,0.19696396,83519.0,83518.0,0.0003362]
[1743654945691,0.15116396,83519.0,83518.0,0.0003362]
[1743654945893,0.03440836,83519.0,83518.0,0.0003362]
[1743654946298,0.03440836,83519.0,83518.0,0.00781957]
[1743654946857,0.02243536,83519.0,83518.0,0.00781957]
[1743654947040,0.02243536,83519.0,83518.0,0.01156125]
[1743654947451,0.03440836,83519.0,83518.0,0.01156125]
[1743654948485,0.02243536,83519.0,83518.0,0.01156125]
[1743654950052,0.02243536,83519.0,83518.0,0.02353463]
[1743654951189,0.03440836,83519.0,83518.0,0.02353463]
[1743654954045,0.03740182,83519.0,83518.0,0.02353463]
[1743654954245,0.15415742,83519.0,83518.0,0.02353463]
[1743654954453,0.15116396,83519.0,83518.0,0.02353463]
[1743654955017,0.15116396,83519.0,83518.0,0.01156125]
[1743654955721,0.54175759,83519.0,83518.0,0.01156125]
[1743654955838,0.67312396,83519.0,83518.0,0.01156125]
[1743654957158,0.67312396,83519.0,83518.0,0.00407788]
[1743654957599,0.67312396,83519.0,83518.0,0.0003362]
[1743654957826,0.67282396,83519.0,83518.0,0.0003362]
[1743654959605,0.62522396,83519.0,83518.0,0.0003362]
[1743654959808,0.49086396,83519.0,83518.0,0.0003362]
[1743654960090,0.62510396,83519.0,83518.0,0.0003362]
[1743654960292,0.62518662,83519.0,83518.0,0.0003362]
[1743654960496,0.66798662,83519.0,83518.0,0.0003362]
[1743654964972,0.94679082,83519.0,83518.0,2e-07]
[1743654965175,1.08099082,83519.0,83518.0,2e-07]
[1743654970712,1.08428875,83519.0,83518.0,2e-07]
[1743654973107,1.08428875,83519.0,83514.0,4e-07]
[1743654973108,0.61645,83515.0,83514.0,4e-07]
[1743654973286,0.7082056,83515.0,83514.0,4e-07]
[1743654973697,0.72934246,83515.0,83514.0,4e-07]
[1743654974357,0.75434246,83515.0,83514.0,4e-07]
[1743654974609,0.72934246,83515.0,83514.0,4e-07]
[1743654974861,0.38934246,83515.0,83514.0,4e-07]
[1743654975463,0.52342246,83515.0,83514.0,4e-07]
[1743654975828,0.02113686,83515.0,83514.0,0.0578744]
[1743654976026,0.02113686,83515.0,83514.0,0.0459004]
[1743654976433,0.00025076,83519.0,83514.0,0.1059744]
[1743654976659,0.00025076,83519.0,83514.0,0.10971668]
[1743654976891,0.01222376,83519.0,83514.0,0.10971668]
[1743654977092,0.011973,83517.0,83514.0,0.10522614]
[1743654977242,0.011973,83515.0,83514.0,0.10522614]
[1743654977456,0.01262869,83515.0,83514.0,0.10522614]
[1743654978102,0.00065569,83515.0,83514.0,0.10522614]
[1743654978452,0.011973,83517.0,83514.0,0.10522614]
[1743654978649,0.00065282,83516.0,83514.0,0.10522614]
[1743654978889,0.011973,83515.0,83514.0,0.10522614]
[1743654979088,0.01262869,83515.0,83514.0,0.10522614]
[1743654979466,0.00065569,83515.0,83514.0,0.10148386]
[1743654979849,0.01496646,83517.0,83514.0,0.05558386]
[1743654980054,0.00065569,83516.0,83514.0,0.05558386]
[1743654980249,0.24013169,83516.0,83514.0,0.05558386]
[1743654980464,0.011973,83515.0,83514.0,0.00748386]
[1743654980659,0.13238076,83515.0,83514.0,0.00748386]
[1743654980865,0.12938716,83515.0,83514.0,0.00748386]
[1743654981313,0.00065856,83515.0,83514.0,0.0112257]
[1743654981694,0.251445,83518.0,83514.0,0.0112257]
[1743654981695,0.011973,83517.0,83514.0,0.0112257]
[1743654981894,0.579477,83515.0,83514.0,0.0112257]
[1743654982491,0.59145,83515.0,83514.0,0.0112257]
[1743654982695,0.351973,83515.0,83514.0,0.0112257]
[1743654983929,0.011973,83515.0,83514.0,0.0112257]
[1743654984129,0.27264809,83516.0,83514.0,0.0112257]
[1743654984130,0.03317209,83516.0,83514.0,0.0112257]
[1743654984375,0.25444361,83515.0,83514.0,0.0112257]
[1743654984559,0.25145,83515.0,83514.0,0.0112257]
[1743654984740,0.25145,83515.0,83514.0,0.00374224]
[1743654985687,0.36119909,83516.0,83514.0,0.00374224]
[1743654985893,0.02119909,83516.0,83514.0,0.25070497]
[1743654986090,0.00025076,83519.0,83514.0,0.25070497]
[1743654986091,0.00025076,83519.0,83515.0,0.061073]
[1743654986301,0.02127242,83518.0,83516.0,0.251448]
[1743654986634,0.02127242,83518.0,83516.0,0.011973]
[1743654987082,0.02127242,83518.0,83517.0,0.01945986]
[1743654987701,0.02127242,83518.0,83517.0,0.0232017]
[1743654987875,0.02127242,83518.0,83517.0,0.0351747]
[1743654988243,0.02127242,83518.0,83517.0,0.0232017]
[1743654989853,0.02036062,83518.0,83517.0,0.0232017]
[1743654990031,0.02085597,83518.0,83517.0,0.2746467]
[1743654990211,0.02102447,83518.0,83517.0,0.2746467]
[1743654990417,0.00066385,83518.0,83517.0,0.2746467]
[1743654990817,0.0001685,83518.0,83517.0,0.2746467]
[1743654991024,0.0001685,83518.0,83517.0,0.3207467]
[1743654996620,0.0001685,83518.0,83517.0,0.2746467]
[1743655000721,0.0001685,83518.0,83517.0,0.0351747]
[1743655000921,0.0001685,83518.0,83517.0,0.0232017]
[1743655001097,0.02137011,83518.0,83517.0,0.0232017]
[1743655001568,0.02137011,83518.0,83517.0,0.0351747]
[1743655001773,0.02137011,83518.0,83517.0,0.1275747]
[1743655002017,0.0001685,83518.0,83517.0,0.1279117]
[1743655002226,0.0001685,83518.0,83517.0,0.13389999]
[1743655006085,0.0001685,83518.0,83517.0,0.14819588]
[1743655006284,5e-07,83518.0,83517.0,0.67955148]
[1743655006426,0.0001683,83539.0,83526.0,0.251418]
[1743655006615,0.0001683,83539.0,83526.0,0.759018]
[1743655007584,0.0001683,83539.0,83526.0,0.77847786]
[1743655007810,0.0001683,83539.0,83526.0,0.80182559]
[1743655008435,0.0001683,83539.0,83526.0,0.81155572]
[1743655008947,0.0001683,83539.0,83526.0,0.79725983]
[1743655010821,0.0001683,83539.0,83526.0,0.93101983]
[1743655022397,0.0001683,83539.0,83538.0,0.251382]
[1743655022602,0.00021432,83539.0,83538.0,0.251382]
[1743655023184,0.00021432,83539.0,83538.0,0.27084186]
[1743655023767,0.00021432,83539.0,83538.0,0.2745837]
[1743655026132,0.25159332,83539.0,83538.0,0.0232017]
[1743655026282,0.2730161,83539.0,83538.0,0.02918999]
[1743655026905,0.0336071,83539.0,83538.0,0.02918999]
[1743655027109,0.0216371,83539.0,83538.0,0.01721386]
[1743655027437,0.0216371,83539.0,83538.0,0.02918386]
[1743655027721,0.0216371,83539.0,83538.0,0.01721386]
[1743655028274,0.0216371,83539.0,83538.0,0.01122557]
[1743655028475,0.0216371,83539.0,83538.0,0.0232017]
[1743655029646,0.01879184,83539.0,83538.0,0.0232017]
[1743655031165,0.03076184,83539.0,83538.0,0.0232017]
[1743655031380,0.03076184,83539.0,83538.0,0.02918999]
[1743655031783,0.19921013,83539.0,83538.0,0.02918999]
[1743655031992,0.53921013,83539.0,83538.0,0.02918999]
[1743655032194,0.58341744,83539.0,83538.0,0.02918999]
[1743655032904,0.58341744,83539.0,83538.0,0.01945986]
[1743655033243,0.011971,83531.0,83530.0,0.00748373]
[1743655033450,0.1287266,83531.0,83530.0,0.00748373]
[1743655033656,0.14739981,83531.0,83530.0,0.00748373]
[1743655034057,0.43543181,83531.0,83530.0,0.00748373]
[1743655035315,0.77543181,83531.0,83530.0,0.00748373]
[1743655035907,0.251415,83527.0,83526.0,0.000337]
[1743655036065,0.3681706,83527.0,83526.0,0.000337]
[1743655036610,0.7081706,83527.0,83526.0,0.000337]
[1743655036810,0.7579706,83527.0,83526.0,0.000337]
[1743655037288,0.75836973,83527.0,83526.0,0.000337]
[1743655037753,0.75853823,83527.0,83526.0,0.000337]
[1743655041709,0.70873823,83527.0,83526.0,0.000337]
[1743655044803,0.34056763,83527.0,83526.0,0.000337]
[1743655044936,0.34056763,83527.0,83526.0,0.239783]
[1743655044937,0.00056763,83527.0,83526.0,0.239783]
[1743655045132,0.0001685,83527.0,83526.0,0.251755]
[1743655045833,0.0001685,83527.0,83526.0,0.25549659]
[1743655046261,0.0001685,83527.0,83526.0,0.00407859]
[1743655046479,0.00060491,83527.0,83526.0,0.0115618]
[1743655046911,0.0187913,83527.0,83526.0,0.0235338]
[1743655047115,0.2582343,83527.0,83526.0,0.0115618]
[1743655047270,0.2702063,83527.0,83526.0,0.0115618]
[1743655047478,0.3869619,83527.0,83526.0,0.0115618]
[1743655047680,0.3869619,83527.0,83526.0,0.00782021]
[1743655048506,0.3869619,83527.0,83526.0,0.000337]
[1743655048909,0.7269619,83527.0,83526.0,0.000337]
[1743655052047,0.8606019,83527.0,83526.0,0.000337]
[1743655054403,0.86049147,83527.0,83526.0,0.000337]
[1743655059980,0.72685147,83527.0,83526.0,0.000337]
[1743655060870,0.14740847,83527.0,83526.0,0.000337]
[1743655061256,0.13543647,83527.0,83526.0,0.000337]
[1743655061718,0.38685147,83527.0,83526.0,0.000337]
[1743655064513,0.03065287,83527.0,83526.0,0.000337]
[1743655064703,0.01868087,83527.0,83526.0,0.000337]
[1743655064912,0.01868087,83527.0,83526.0,0.057409]
[1743655065115,0.01868087,83527.0,83526.0,0.045437]
[1743655065314,0.0121405,83527.0,83526.0,0.000337]
[1743655065484,0.0336503,83527.0,83526.0,0.000337]
[1743655065892,0.03065716,83527.0,83526.0,0.00781915]
[1743655066106,0.03065716,83527.0,83526.0,0.01156074]
[1743655068979,0.01868516,83527.0,83526.0,0.01156074]
[1743655069117,0.01868516,83527.0,83526.0,0.05766074]
[1743655069319,0.01868516,83527.0,83526.0,0.06963274]
[1743655069548,0.0001685,83527.0,83526.0,0.06963274]
[1743655074162,0.01866403,83527.0,83526.0,0.02353274]
[1743655074357,0.0121405,83527.0,83526.0,0.01156074]
[1743655074660,0.14739163,83527.0,83526.0,0.01156074]
[1743655075406,0.14739163,83527.0,83526.0,0.00781915]
[1743655075816,0.14739163,83527.0,83526.0,0.000337]
[1743655076230,0.15038492,83527.0,83526.0,0.000337]
[1743655081208,0.14739163,83527.0,83526.0,0.000337]
[1743655081437,0.03063603,83527.0,83526.0,0.000337]
[1743655081654,0.01866403,83527.0,83526.0,0.000337]
[1743655082666,0.03063603,83527.0,83526.0,0.000337]
[1743655083077,0.03063603,83527.0,83526.0,0.00781938]
[1743655084108,0.01866403,83527.0,83526.0,0.01156057]
[1743655084607,0.03063603,83527.0,83526.0,0.01156057]
[1743655090812,0.01866403,83527.0,83526.0,0.01156057]
[1743655093465,0.01866403,83527.0,83526.0,0.02353257]
[1743655093801,0.0001685,83527.0,83526.0,0.02353257]
[1743655094929,0.0001685,83527.0,83526.0,0.03550365]
[1743655096617,0.0001685,83527.0,83526.0,0.08060365]
[1743655097330,0.0001685,83527.0,83526.0,0.03263344]
[1743655097478,0.0121405,83527.0,83526.0,0.02353165]
[1743655097707,0.03061457,83527.0,83526.0,0.02353165]
[1743655098882,0.14737017,83527.0,83526.0,0.02353165]
[1743655099877,0.14687017,83527.0,83526.0,0.01156057]
[1743655100279,0.19457017,83527.0,83526.0,0.01156057]
[1743655100508,0.53457017,83527.0,83526.0,0.01156057]
[1743655101354,0.53457017,83527.0,83526.0,0.00781938]
[1743655106325,0.48687017,83527.0,83526.0,0.00781938]
[1743655110592,0.48687017,83527.0,83526.0,0.000337]
[1743655112280,0.35847407,83527.0,83526.0,0.000337]
[1743655112479,0.37044607,83527.0,83526.0,0.000337]
[1743655112902,0.37044607,83527.0,83526.0,0.00781972]
[1743655114130,0.48720167,83527.0,83526.0,0.00781972]
[1743655115576,0.48720167,83527.0,83526.0,0.000337]
[1743655115931,0.37044607,83527.0,83526.0,0.000337]
[1743655116654,0.48720167,83527.0,83526.0,0.000337]
[1743655118378,0.48737017,83527.0,83526.0,0.000337]
[1743655118962,0.4688961,83527.0,83526.0,0.000337]
[1743655119163,0.48729673,83527.0,83526.0,0.000337]
[1743655121534,0.53659673,83527.0,83526.0,0.000337]
[1743655130580,0.48729673,83527.0,83526.0,0.000337]
[1743655134944,0.48729673,83527.0,83526.0,0.00781985]
[1743655136775,0.48729673,83527.0,83526.0,0.000337]
[1743655137135,0.53249673,83527.0,83526.0,0.000337]
[1743655137467,0.57859673,83527.0,83526.0,0.000337]
[1743655139679,0.99164093,83527.0,83526.0,0.000337]
[1743655139883,0.011973,83518.0,83517.0,0.000337]
[1743655140080,0.71119146,83518.0,83517.0,0.000337]
[1743655140282,0.72655559,83518.0,83517.0,0.000337]
[1743655141103,0.77425559,83518.0,83517.0,0.000337]
[1743655145520,1.18729979,83518.0,83517.0,0.000337]
[1743655148384,1.18720653,83518.0,83517.0,0.000337]
[1743655151763,1.30395054,83518.0,83517.0,0.000337]
[1743655161201,1.13950653,83518.0,83517.0,0.000337]
[1743655161435,1.27334653,83518.0,83517.0,0.000337]
[1743655161835,1.13950653,83518.0,83517.0,0.000337]
[1743655162044,1.27338653,83518.0,83517.0,0.000337]
[1743655163253,1.32128653,83518.0,83517.0,0.000337]
[1743655164132,1.43803054,83518.0,83517.0,0.000337]
[1743655164614,1.32128653,83518.0,83517.0,0.000337]
[1743655164950,1.27338653,83518.0,83517.0,0.000337]
[1743655175102,0.59145,83515.0,83514.0,4e-07]
[1743655175303,0.7263999,83515.0,83514.0,4e-07]
[1743655175744,0.84314391,83515.0,83514.0,4e-07]
[1743655177907,0.7263999,83515.0,83514.0,4e-07]
[1743655180929,1.1394441,83515.0,83514.0,4e-07]
[1743655181479,1.2734841,83515.0,83514.0,4e-07]
[1743655183175,1.2734441,83515.0,83514.0,4e-07]
[1743655188788,1.1394441,83515.0,83514.0,4e-07]
[1743655188962,1.2733641,83515.0,83514.0,4e-07]
[1743655189580,1.1394441,83515.0,83514.0,4e-07]
[1743655189783,1.2734041,83515.0,83514.0,4e-07]
[1743655192222,1.1394441,83515.0,83514.0,4e-07]
[1743655192431,1.2733641,83515.0,83514.0,4e-07]
[1743655193250,1.2733241,83515.0,83514.0,4e-07]
[1743655199817,0.8602799,83515.0,83514.0,4e-07]
[1743655200014,0.0181943,83515.0,83514.0,0.1058744]
[1743655200260,0.0181943,83515.0,83514.0,0.0939004]
[1743655200460,0.0001686,83517.0,83515.0,0.0461]
[1743655201589,0.1287286,83516.0,83515.0,0.0461]
[1743655202767,0.1287286,83516.0,83515.0,0.05358376]
[1743655204107,0.12906892,83516.0,83515.0,0.05358376]
[1743655206166,0.47206251,83516.0,83515.0,0.00748376]
[1743655206280,0.46906892,83516.0,83515.0,0.00748376]
[1743655206686,0.25145,83515.0,83514.0,4e-07]
[1743655206941,0.36855166,83515.0,83514.0,4e-07]
[1743655207143,0.70855166,83515.0,83514.0,4e-07]
[1743655208018,0.75705166,83515.0,83514.0,4e-07]
[1743655208996,0.70855166,83515.0,83514.0,4e-07]
[1743655211765,0.72351416,83515.0,83514.0,4e-07]
[1743655213125,1.13655836,83515.0,83514.0,4e-07]
[1743655224788,1.18945836,83515.0,83514.0,4e-07]
[1743655224923,1.18934931,83515.0,83514.0,4e-07]
[1743655225112,1.30609332,83515.0,83514.0,4e-07]
[1743655228587,1.18934931,83515.0,83514.0,4e-07]
[1743655228787,1.13644931,83515.0,83514.0,4e-07]
[1743655228991,1.27012931,83515.0,83514.0,4e-07]
[1743655231724,1.27615921,83515.0,83514.0,4e-07]
[1743655234128,1.14247921,83515.0,83514.0,4e-07]
[1743655234329,1.27615921,83515.0,83514.0,4e-07]
[1743655241765,1.14247921,83515.0,83514.0,4e-07]
[1743655241972,1.27615921,83515.0,83514.0,4e-07]
[1743655246107,1.14247921,83515.0,83514.0,4e-07]
[1743655246318,1.27615921,83515.0,83514.0,4e-07]
[1743655256797,1.27547928,83515.0,83514.0,4e-07]
[1743655258019,0.86243508,83515.0,83514.0,4e-07]
[1743655258354,0.72875508,83515.0,83514.0,4e-07]
[1743655258573,0.72875508,83515.0,83514.0,0.00748481]
[1743655261160,0.72875508,83515.0,83514.0,0.05518481]
[1743655261296,0.47798501,83515.0,83514.0,0.05518481]
[1743655261499,0.0213112,83515.0,83514.0,0.11705881]
[1743655261928,0.0001686,83517.0,83516.0,0.059673]
[1743655262198,0.0001686,83517.0,83516.0,0.109573]
[1743655262407,0.011972,83528.0,83523.0,0.0477]
[1743655262591,0.14976081,83527.0,83523.0,0.0477]
[1743655263521,0.13778881,83527.0,83524.0,0.03442315]
[1743655263920,0.02103321,83527.0,83526.0,0.061872]
[1743655264134,0.34,83530.0,83528.0,0.011972]
[1743655264362,0.02103083,83529.0,83528.0,0.011972]
[1743655264960,0.02141992,83529.0,83528.0,0.011972]
[1743655265521,0.02141992,83529.0,83528.0,0.01571349]
[1743655266266,0.02141992,83529.0,83528.0,0.05013248]
[1743655266544,0.02141992,83529.0,83528.0,0.03816048]
[1743655267238,0.02141992,83529.0,83528.0,0.0231957]
[1743655267695,0.02141992,83529.0,83528.0,0.01945421]
[1743655273115,0.13817552,83529.0,83528.0,0.01945421]
[1743655273322,0.15313942,83529.0,83528.0,0.01945421]
[1743655274057,0.15014652,83529.0,83528.0,0.01945421]
[1743655274616,0.15014652,83529.0,83528.0,0.00748239]
[1743655281572,0.02141992,83529.0,83528.0,0.30419439]
[1743655281779,0.0001685,83530.0,83529.0,0.011971]
[1743655283389,0.0001685,83530.0,83529.0,0.05013071]
[1743655285408,0.0001685,83530.0,83529.0,0.09543071]
[1743655286399,0.0001685,83530.0,83529.0,0.10141623]
[1743655286604,0.0001685,83539.0,83538.0,0.05727]
[1743655287220,0.0001685,83539.0,83538.0,0.10467]
[1743655287380,0.0001685,83539.0,83538.0,0.13908822]
[1743655287761,0.0001685,83539.0,83538.0,0.37850022]
[1743655287982,0.0001685,83539.0,83538.0,0.38822723]
[1743655292402,0.0001685,83539.0,83538.0,0.38224171]
[1743655293565,0.0001685,83539.0,83538.0,0.38822723]
[1743655293961,0.0001685,83539.0,83538.0,0.39561185]
[1743655295338,0.0001685,83539.0,83538.0,0.38064707]
[1743655295983,0.0001685,83539.0,83538.0,0.37466155]
[1743655296409,0.0001685,83539.0,83538.0,0.36727693]
[1743655299844,0.0001685,83539.0,83538.0,0.48403253]
[1743655300063,0.0001685,83539.0,83538.0,0.49141335]
[1743655301113,0.0001685,83539.0,83538.0,0.48403253]
[1743655303970,0.0001685,83539.0,83538.0,0.89863253]
[1743655312001,0.0051355,83562.0,83556.0,0.251326]
[1743655312202,0.00518152,83562.0,83556.0,0.251326]
[1743655312403,0.02188439,83561.0,83557.0,0.011967]
[1743655313022,0.02188439,83561.0,83558.0,0.01945344]
[1743655313279,0.02188439,83561.0,83558.0,0.02319493]
[1743655313794,0.02188439,83561.0,83558.0,0.26254893]
[1743655314008,0.02188439,83561.0,83558.0,0.27451593]
[1743655314310,0.02188439,83561.0,83559.0,0.01945344]
[1743655314490,0.02188439,83561.0,83559.0,0.02319493]
[1743655315550,0.02188439,83561.0,83560.0,0.01945344]
[1743655316098,0.02188439,83561.0,83560.0,0.02319493]
[1743655317844,0.02188439,83561.0,83560.0,0.03516193]
[1743655318809,0.02205289,83561.0,83560.0,0.03516193]
[1743655319294,0.0001685,83561.0,83560.0,0.03516193]
[1743655319693,0.33122167,83569.0,83561.0,0.011967]
[1743655319933,0.13864993,83568.0,83562.0,0.239343]
[1743655320136,0.13864993,83568.0,83562.0,0.25879644]
[1743655320349,0.02189433,83568.0,83566.0,0.239331]
[1743655320756,0.02189433,83568.0,83567.0,0.011966]
[1743655321423,0.02189433,83568.0,83567.0,0.03141944]
[1743655321647,0.00046017,83569.0,83567.0,0.02319493]
[1743655321964,0.02191588,83568.0,83567.0,0.02319493]
[1743655324504,0.03388188,83568.0,83567.0,0.02319493]
[1743655325579,0.15362903,83568.0,83567.0,0.02319493]
[1743655325783,0.20012903,83568.0,83567.0,0.02319493]
[1743655327177,0.20012903,83568.0,83567.0,0.01122388]
[1743655327335,0.20012903,83568.0,83567.0,0.00748239]
[1743655327536,0.20008092,83568.0,83567.0,0.00748239]
[1743655328111,0.20008106,83568.0,83567.0,0.00748239]
[1743655329059,0.19708937,83568.0,83567.0,0.00748239]
[1743655329918,0.20008106,83568.0,83567.0,0.00748239]
[1743655330279,0.19708937,83568.0,83567.0,0.00748239]
[1743655330720,0.20008106,83568.0,83567.0,0.00748239]
[1743655332803,0.20008106,83568.0,83567.0,0.01944946]
[1743655333004,0.13870749,83568.0,83567.0,0.01944946]
[1743655333230,0.13870749,83568.0,83567.0,0.03141546]
[1743655333431,0.13870749,83568.0,83567.0,0.01944946]
[1743655334091,0.13870749,83568.0,83567.0,0.02318889]
[1743655335328,0.02195189,83568.0,83567.0,0.02318889]
[1743655335901,0.02195189,83568.0,83567.0,0.01944946]
[1743655336418,0.03391789,83568.0,83567.0,0.01944946]
[1743655337147,0.02195189,83568.0,83567.0,0.01944946]
[1743655341777,0.00062857,83569.0,83568.0,0.239326]
[1743655341980,0.00062857,83569.0,83568.0,0.251292]
[1743655342213,0.01755853,83569.0,83568.0,0.251292]
[1743655342909,0.00355853,83569.0,83568.0,0.251292]
[1743655343115,0.02,83570.0,83569.0,0.011966]
[1743655344421,0.02,83570.0,83569.0,0.03141546]
[1743655345415,0.02,83570.0,83569.0,0.01944946]
[1743655345416,0.031966,83570.0,83569.0,0.01944946]
[1743655345816,0.04668976,83570.0,83569.0,0.01944946]
[1743655348347,0.02668976,83570.0,83569.0,0.01944946]
[1743655350680,0.02501742,83570.0,83569.0,0.01944946]
[1743655351359,0.01305142,83570.0,83569.0,0.01944946]
[1743655351718,0.0001682,83572.0,83569.0,0.01944946]
[1743655352039,0.26408562,83571.0,83569.0,0.01944946]
[1743655352240,0.02476762,83571.0,83569.0,0.01944946]
[1743655352422,0.02476762,83571.0,83570.0,0.01944946]
[1743655354367,0.01280262,83571.0,83570.0,0.03141546]
[1743655355018,0.0001682,83572.0,83571.0,0.251282]
[1743655355467,0.01301662,83572.0,83571.0,0.251282]
[1743655355692,0.0001682,83572.0,83571.0,0.251282]
[1743655355895,0.01301662,83572.0,83571.0,0.251282]
[1743655356022,0.0001682,83572.0,83571.0,0.251282]
[1743655356231,0.01301662,83572.0,83571.0,0.251282]
[1743655356461,0.0001682,83572.0,83571.0,0.251282]
[1743655356658,0.0001682,83572.0,83571.0,0.27073146]
[1743655356659,0.01301662,83572.0,83571.0,0.27073146]
[1743655356861,0.0001682,83572.0,83571.0,0.27073146]
[1743655357119,0.01301662,83572.0,83571.0,0.27073146]
[1743655357273,0.0001682,83572.0,83571.0,0.27073146]
[1743655357485,0.01301662,83572.0,83571.0,0.27073146]
[1743655357657,0.0001682,83572.0,83571.0,0.27073146]
[1743655357855,0.01301662,83572.0,83571.0,0.27073146]
[1743655358057,0.0001682,83572.0,83571.0,0.27073146]
[1743655358260,0.01301662,83572.0,83571.0,0.27073146]
[1743655358474,0.0001682,83572.0,83571.0,0.27073146]
[1743655358717,0.01301662,83572.0,83571.0,0.27073146]
[1743655358858,0.0001682,83572.0,83571.0,0.27073146]
[1743655359059,0.01301662,83572.0,83571.0,0.27073146]
[1743655359325,0.0001682,83572.0,83571.0,0.27073146]
[1743655359490,0.01301662,83572.0,83571.0,0.27073146]
[1743655359689,0.0001682,83572.0,83571.0,0.27073146]
[1743655359912,0.01301662,83572.0,83571.0,0.27073146]
[1743655360138,0.0001682,83572.0,83571.0,0.27073146]
[1743655360318,0.01301662,83572.0,83571.0,0.27073146]
[1743655360552,0.0001682,83572.0,83571.0,0.27073146]
[1743655360967,0.01301662,83572.0,83571.0,0.27073146]
[1743655361193,0.0001682,83572.0,83571.0,0.27073146]
[1743655362118,0.0001682,83572.0,83571.0,0.31943146]
[1743655363302,0.0001682,83572.0,83571.0,0.53243197]
[1743655363933,2e-07,83572.0,83571.0,0.95902043]
[1743655364994,2e-07,83579.0,83578.0,0.251261]
[1743655365191,2e-07,83579.0,83578.0,1.05252523]
[1743655365392,0.0170802,83585.0,83584.0,0.298644]
[1743655365597,0.0001685,83602.0,83600.0,0.298495]
[1743655365798,0.00030609,83601.0,83600.0,0.345895]
[1743655367045,0.00030609,83601.0,83600.0,0.36534446]
[1743655367928,0.00030609,83601.0,83600.0,0.37732621]
[1743655369295,0.00030609,83601.0,83600.0,0.38614389]
[1743655372315,0.00030609,83601.0,83600.0,0.37417682]
[1743655376805,0.00030609,83601.0,83600.0,0.50873682]
[1743655380634,0.00030609,83601.0,83600.0,0.46133682]
[1743655381219,0.00030609,83601.0,83600.0,0.27947682]
[1743655382102,0.011959,83615.0,83600.0,0.27947682]
[1743655382103,0.239196,83614.0,83608.0,0.251169]
[1743655382315,0.239189,83616.0,83610.0,0.01196]
[1743655382517,0.01311783,83613.0,83611.0,0.01196]
[1743655382720,0.239189,83616.0,83611.0,0.01196]
[1743655382917,0.01311104,83612.0,83611.0,0.01196]
[1743655383117,0.239189,83616.0,83611.0,0.01196]
[1743655383315,0.0131133,83612.0,83611.0,0.01196]
[1743655383518,0.239189,83616.0,83611.0,0.01196]
[1743655384015,0.01311104,83615.0,83611.0,0.01196]
[1743655385564,0.01311104,83615.0,83614.0,0.239194]
[1743655385725,0.01311104,83615.0,83613.0,0.011959]
[1743655388209,0.01311104,83615.0,83612.0,0.01196]
[1743655388415,0.01311104,83615.0,83610.0,0.01196]
[1743655388644,0.251163,83611.0,83606.0,0.251177]
[1743655388844,0.01196,83612.0,83605.0,0.011961]